bitfinex/quotes_SOLUSD_20241220
["timestamp","ask_amount","ask_price","bid_price","bid_amount"]
[1734655912381,23.26097511,195.4,195.32,22.49467511]
[1734655912979,36.8342844,195.39,195.31,36.8342844]
[1734655913185,37.6005844,195.38,195.31,36.8342844]
[1734655913487,37.6005844,195.38,195.3,36.8342844]
[1734655913804,7.96678768,195.33,195.3,19.03837657]
[1734655913992,7.96678768,195.36,195.3,19.03837657]
[1734655914303,44.80107208,195.36,195.28,36.8342844]
[1734655914604,36.8342844,195.35,195.28,36.8342844]
[1734655915390,36.8342844,195.34,195.26,38.86420152]
[1734655915691,36.8342844,195.34,195.26,36.8342844]
[1734655915906,36.8342844,195.32,195.24,36.8342844]
[1734655916078,36.8342844,195.28,195.22,0.38574547]
[1734655916282,36.8342844,195.26,195.21,2.026565]
[1734655916588,36.8342844,195.25,195.17,36.8342844]
[1734655916789,9.60384562,195.34,195.15,37.22078509]
[1734655916790,36.8342844,195.22,195.15,37.22078509]
[1734655917293,6.97838649,195.32,195.15,37.22078509]
[1734655917294,36.8342844,195.21,195.15,0.38650069]
[1734655917494,36.8342844,195.22,195.14,36.8342844]
[1734655917698,36.8342844,195.21,195.14,36.8342844]
[1734655917909,36.8342844,195.2,195.13,36.8342844]
[1734655918087,36.8342844,195.2,195.12,36.8342844]
[1734655918791,36.8342844,195.18,195.11,36.8342844]
[1734655918986,36.8342844,195.28,195.17,36.8342844]
[1734655919213,36.8342844,195.28,195.21,36.8342844]
[1734655919391,36.8342844,195.28,195.2,36.8342844]
[1734655920000,36.8342844,195.32,195.24,36.8342844]
[1734655920210,36.8342844,195.32,195.25,36.8342844]
[1734655920518,36.8342844,195.26,195.19,36.8342844]
[1734655920739,0.96040265,195.25,195.15,0.38639384]
[1734655921038,11.5201,195.31,195.15,36.8342844]
[1734655921231,11.5201,195.31,195.02,20.498104]
[1734655921232,36.8342844,195.2,195.13,36.8342844]
[1734655921398,36.8342844,195.19,195.12,36.8342844]
[1734655922025,20.0,195.22,195.1,36.8342844]
[1734655922329,36.8342844,195.18,195.11,36.8342844]
[1734655922690,36.8342844,195.17,195.1,36.8342844]
[1734655923089,0.96076491,195.22,195.13,36.8342844]
[1734655923407,36.8342844,195.24,195.16,36.8342844]
[1734655923609,36.8342844,195.23,195.16,36.8342844]
[1734655923896,36.8342844,195.2,195.1,0.38682891]
[1734655924096,36.8342844,195.21,195.14,36.8342844]
[1734655924298,36.8342844,195.25,195.14,0.38714504]
[1734655924497,36.8342844,195.26,195.19,36.8342844]
[1734655924702,36.8342844,195.31,195.24,36.8342844]
[1734655924934,36.8342844,195.32,195.25,37.22042112]
[1734655925117,36.8342844,195.31,195.24,36.8342844]
[1734655925619,36.8342844,195.3,195.23,36.8342844]
[1734655926120,36.8342844,195.32,195.24,1.6165915]
[1734655926334,0.96015712,195.33,195.28,20.0]
[1734655926335,36.8342844,195.33,195.28,20.0]
[1734655926613,3.14970533,195.39,195.31,36.8342844]
[1734655926614,36.8342844,195.39,195.31,36.8342844]
[1734655926829,0.95980179,195.38,195.24,20.0]
[1734655927030,4.91734625,195.37,195.19,20.0]
[1734655927217,0.9602855,195.36,195.19,20.0]
[1734655927431,0.9602855,195.36,195.17,20.38629953]
[1734655927639,20.0,195.34,195.19,20.0]
[1734655927823,36.8342844,195.26,195.18,36.8342844]
[1734655928023,36.8342844,195.26,195.19,36.8342844]
[1734655928517,36.8342844,195.3,195.22,36.8342844]
[1734655929324,36.8342844,195.32,195.25,36.8342844]
[1734655929635,36.8342844,195.35,195.27,36.8342844]
[1734655930054,36.8342844,195.35,195.19,64.24565953]
[1734655930055,36.8342844,195.35,195.28,37.22004847]
[1734655930354,36.8342844,195.36,195.28,37.22004847]
[1734655930535,36.8342844,195.35,195.28,37.22004847]
[1734655930853,36.8342844,195.37,195.28,37.22004847]
[1734655931097,36.8342844,195.38,195.3,36.8342844]
[1734655931339,0.95977955,195.37,195.3,36.8342844]
[1734655931637,36.8342844,195.38,195.31,36.8342844]
[1734655931836,36.8342844,195.39,195.31,36.8342844]
[1734655932250,37.79406395,195.4,195.32,36.8342844]
[1734655932629,37.79401439,195.42,195.34,36.8342844]
[1734655932939,36.8342844,195.42,195.34,36.8342844]
[1734655933159,0.95949355,195.41,195.34,36.8342844]
[1734655933457,36.8342844,195.38,195.3,36.8342844]
[1734655933620,0.95983883,195.37,195.3,36.8342844]
[1734655933815,36.8342844,195.36,195.28,36.8342844]
[1734655934017,36.8342844,195.36,195.25,0.38567572]
[1734655934018,36.8342844,195.34,195.27,36.8342844]
[1734655934230,0.96002934,195.33,195.25,36.8342844]
[1734655934641,0.96002934,195.33,195.26,36.8342844]
[1734655934853,36.8342844,195.35,195.27,36.8342844]
[1734655935061,0.95990832,195.34,195.27,36.8342844]
[1734655935254,36.8342844,195.35,195.28,36.8342844]
[1734655935831,0.95992707,195.34,195.28,36.8342844]
[1734655936756,36.8342844,195.37,195.3,36.8342844]
[1734655936960,36.8342844,195.39,195.3,36.8342844]
[1734655937157,0.9598634,195.38,195.3,36.8342844]
[1734655937838,36.8342844,195.41,195.32,36.8342844]
[1734655938031,36.8342844,195.41,195.32,37.219777]
[1734655938246,43.4840844,195.43,195.36,36.8342844]
[1734655938452,36.8342844,195.47,195.38,36.8342844]
[1734655938651,36.8342844,195.41,195.34,36.8342844]
[1734655938833,0.95970093,195.4,195.32,11.91774029]
[1734655939028,36.8342844,195.4,195.32,11.91774029]
[1734655939262,0.95975662,195.39,195.32,11.91774029]
[1734655939758,36.8342844,195.4,195.32,11.91774029]
[1734655939959,36.8342844,195.42,195.34,36.8342844]
[1734655940161,36.8342844,195.4,195.32,36.8342844]
[1734655940343,0.95974724,195.39,195.32,36.8342844]
[1734655941152,36.8342844,195.42,195.34,36.8342844]
[1734655941345,23.776884,195.41,195.34,36.8342844]
[1734655941663,36.8342844,195.4,195.32,36.8342844]
[1734655941866,0.95978575,195.39,195.32,36.8342844]
[1734655942263,0.95978575,195.39,195.33,36.8342844]
[1734655942765,0.9597635,195.4,195.33,36.8342844]
[1734655942963,36.8342844,195.41,195.33,36.8342844]
[1734655943159,0.95961688,195.4,195.33,36.8342844]
[1734655943346,36.8342844,195.39,195.31,36.8342844]
[1734655943547,0.95984042,195.38,195.31,36.8342844]
[1734655943740,0.95974708,195.38,195.31,36.8342844]
[1734655943941,0.95974708,195.38,195.28,0.38567891]
[1734655943942,36.8342844,195.43,195.35,36.8342844]
[1734655944141,36.8342844,195.44,195.36,36.8342844]
[1734655944349,37.79384709,195.43,195.35,36.8342844]
[1734655945165,36.8342844,195.42,195.34,36.8342844]
[1734655945356,0.9596956,195.41,195.34,36.8342844]
[1734655946460,36.8342844,195.43,195.35,36.8342844]
[1734655946964,37.79384916,195.42,195.35,36.8342844]
[1734655947366,0.95956476,195.42,195.35,36.8342844]
[1734655947544,36.8342844,195.41,195.33,36.8342844]
[1734655947866,36.8342844,195.42,195.34,36.8342844]
[1734655948656,36.8342844,195.43,195.35,36.8342844]
[1734655948842,36.8342844,195.43,195.36,36.8342844]
[1734655949668,37.79378157,195.45,195.37,36.8342844]
[1734655949872,37.79371545,195.46,195.38,36.8342844]
[1734655950162,36.8342844,195.44,195.36,36.8342844]
[1734655950369,36.8342844,195.4,195.33,56.8342844]
[1734655950954,36.8342844,195.41,195.34,36.8342844]
[1734655951266,0.95963654,195.4,195.33,56.8342844]
[1734655951570,36.8342844,195.41,195.33,56.8342844]
[1734655951741,60.6111684,195.39,195.31,36.8342844]
[1734655951945,60.6111684,195.39,195.3,0.38502656]
[1734655951946,36.8342844,195.35,195.27,36.8342844]
[1734655952371,0.95995691,195.34,195.27,36.8342844]
[1734655952570,36.8342844,195.36,195.28,36.8342844]
[1734655952758,0.9599092,195.35,195.28,36.8342844]
[1734655953622,36.8342844,195.37,195.29,36.8342844]
[1734655953766,0.95986389,195.36,195.29,36.8342844]
[1734655954067,37.79414743,195.37,195.29,36.8342844]
[1734655954455,36.8342844,195.36,195.29,36.8342844]
[1734655954652,0.95987949,195.35,195.28,36.8342844]
[1734655954856,36.8342844,195.34,195.26,36.8342844]
[1734655955375,6.0494,195.38,195.31,36.8342844]
[1734655955678,7.00913566,195.38,195.32,36.8342844]
[1734655955851,7.009147,195.38,195.32,36.8342844]
[1734655956047,43.8434314,195.38,195.3,36.8342844]
[1734655956556,42.8836844,195.38,195.3,36.8342844]
[1734655956779,6.0494,195.38,195.32,36.8342844]
[1734655956972,43.84342896,195.38,195.31,36.8342844]
[1734655957177,36.8342844,195.37,195.3,36.8342844]
[1734655957786,43.84342896,195.38,195.31,36.8342844]
[1734655958080,36.8342844,195.41,195.33,36.8342844]
[1734655958268,0.95961864,195.4,195.33,36.8342844]
[1734655958469,37.79390304,195.4,195.33,36.8342844]
[1734655958961,36.8342844,195.4,195.33,36.8342844]
[1734655959877,36.8342844,195.41,195.33,36.8342844]
[1734655960980,0.95967589,195.42,195.32,36.8342844]
[1734655960981,37.7939306,195.4,195.32,36.8342844]
[1734655962669,36.8342844,195.4,195.33,37.21975455]
[1734655962861,0.95973604,195.41,195.34,36.8342844]
[1734655963192,23.6204698,195.41,195.34,22.66073376]
[1734655963579,6.4353,195.43,195.28,32.8017]
[1734655963580,6.4353,195.43,195.35,23.04599242]
[1734655963774,6.4353,195.43,195.36,22.66073376]
[1734655964086,7.39480412,195.43,195.37,22.66073376]
[1734655964479,22.66073376,195.42,195.35,22.66073376]
[1734655964672,0.95965831,195.41,195.34,22.66073376]
[1734655964868,22.66073376,195.4,195.33,22.66073376]
[1734655965076,23.62050253,195.39,195.32,22.66073376]
[1734655965686,22.66073376,195.4,195.32,22.66073376]
[1734655966073,0.95969427,195.39,195.32,22.66073376]
[1734655966888,23.62045797,195.4,195.32,22.66073376]
[1734655967483,22.66073376,195.39,195.32,22.66073376]
[1734655967686,0.95976134,195.38,195.31,22.66073376]
[1734655967986,0.95976134,195.38,195.28,0.3855356]
[1734655967987,22.66073376,195.39,195.32,22.66073376]
[1734655969500,6.4353,195.43,195.37,22.66073376]
[1734655970070,29.09603376,195.43,195.36,22.66073376]
[1734655970603,6.4353,195.43,195.36,22.66073376]
[1734655971507,22.66073376,195.39,195.31,22.66073376]
[1734655971685,0.95978833,195.38,195.31,22.66073376]
[1734655972196,22.66073376,195.39,195.31,22.66073376]
[1734655973594,0.95973173,195.38,195.31,22.66073376]
[1734655973981,22.66073376,195.37,195.31,22.66073376]
[1734655974295,0.95985384,195.36,195.29,22.66073376]
[1734655974481,22.66073376,195.36,195.29,22.66073376]
[1734655975395,6.4353,195.43,195.35,22.66073376]
[1734655975599,7.39483658,195.43,195.36,22.66073376]
[1734655975787,6.4353,195.43,195.37,22.66073376]
[1734655976120,6.4353,195.43,195.38,22.66073376]
[1734655976408,30.05549123,195.43,195.36,22.66073376]
[1734655976577,22.66073376,195.42,195.35,22.66073376]
[1734655977095,0.95958657,195.41,195.35,22.66073376]
[1734655977296,0.95958657,195.42,195.35,22.66073376]
[1734655977499,22.66073376,195.37,195.3,22.66073376]
[1734655977699,22.66073376,195.37,195.13,25.6238]
[1734655977700,22.66073376,195.33,195.26,22.66073376]
[1734655977886,22.66073376,195.33,195.25,22.66073376]
[1734655978207,22.66073376,195.32,195.25,22.66073376]
[1734655978418,22.68440488,195.29,195.21,22.68440488]
[1734655978695,23.776884,195.3,195.2,22.68440488]
[1734655978696,22.68440488,195.27,195.2,22.68440488]
[1734655978896,23.64469103,195.28,195.21,22.68440488]
[1734655979301,29.27840488,195.31,195.23,22.68440488]
[1734655979798,0.96012887,195.3,195.23,22.68440488]
[1734655980101,23.64453375,195.3,195.22,22.68440488]
[1734655980302,6.594,195.31,195.24,22.68440488]
[1734655981082,30.23849951,195.31,195.24,22.68440488]
[1734655981283,30.23849951,195.31,195.22,22.68440488]
[1734655981284,22.68440488,195.3,195.22,22.68440488]
[1734655981508,0.960218,195.29,195.22,22.68440488]
[1734655981799,6.594,195.31,195.25,22.68440488]
[1734655982189,6.594,195.31,195.22,0.38644044]
[1734655982498,3.4691,195.32,195.27,22.68099908]
[1734655982680,6.5748,195.36,195.29,22.68099908]
[1734655982878,3.2592,195.38,195.33,22.68099908]
[1734655983084,14.54158768,195.41,195.34,22.68099908]
[1734655983392,22.68099908,195.4,195.33,22.68099908]
[1734655984185,30.21544933,195.41,195.33,22.68099908]
[1734655986204,30.21544933,195.41,195.34,22.68099908]
[1734655986399,22.68099908,195.4,195.32,22.68099908]
[1734655986614,22.68099908,195.38,195.31,22.68099908]
[1734655986775,22.68099908,195.36,195.28,22.68099908]
[1734655986980,22.68099908,195.33,195.26,22.68099908]
[1734655988314,22.68099908,195.37,195.3,22.68099908]
[1734655988480,0.95979989,195.36,195.3,22.68099908]
[1734655988809,22.68099908,195.34,195.26,22.68099908]
[1734655988986,23.64108426,195.33,195.25,22.68099908]
[1734655990703,23.64108426,195.33,195.21,0.38616841]
[1734655990704,22.68099908,195.32,195.24,22.68099908]
[1734655990903,23.64112498,195.31,195.24,22.68099908]
[1734655991211,0.9601259,195.31,195.24,22.68099908]
[1734655991395,22.68099908,195.29,195.22,22.68099908]
[1734655991585,0.96025168,195.28,195.21,22.68099908]
[1734655992407,23.64125076,195.28,195.21,22.68099908]
[1734655992603,22.68099908,195.24,195.17,22.68099908]
[1734655992784,23.64152801,195.23,195.16,22.68099908]
[1734655992984,23.64152801,195.23,195.15,22.68099908]
[1734655993410,22.68099908,195.19,195.12,22.68099908]
[1734655993586,3.3818,195.2,195.13,22.68099908]
[1734655993786,4.34246715,195.2,195.13,22.68099908]
[1734655994308,3.3818,195.2,195.14,22.68099908]
[1734655994504,0.96070384,195.19,195.12,22.68099908]
[1734655994809,22.68099908,195.15,195.08,22.68099908]
[1734655995386,22.68099908,195.13,195.07,0.6463471]
[1734655995587,22.68099908,195.12,195.07,0.6463471]
[1734655996119,22.68099908,195.11,195.07,0.6463471]
[1734655996324,0.96113199,195.1,195.07,0.6463471]
[1734655997210,22.68099908,195.12,195.07,0.6463471]
[1734655997412,22.68099908,195.11,195.07,0.6463471]
[1734655997616,0.96117258,195.1,195.07,0.6463471]
[1734655997988,23.776884,195.08,195.07,0.6463471]
[1734655998206,47.41925842,195.08,195.07,0.6463471]
[1734655998408,57.34915842,195.08,195.07,0.6463471]
[1734656000316,22.68099908,195.12,195.07,0.6463471]
[1734656000499,23.64232298,195.13,195.07,0.6463471]
[1734656002122,6.4026,195.14,195.09,22.68099908]
[1734656002304,7.36351804,195.14,195.08,22.68099908]
[1734656002507,0.96097208,195.13,195.07,23.32734618]
[1734656002704,22.68099908,195.12,195.07,0.6463471]
[1734656003113,22.68099908,195.11,195.07,0.6463471]
[1734656003324,23.64218025,195.1,195.07,0.6463471]
[1734656003499,0.96118117,195.1,195.07,0.6463471]
[1734656004418,0.96114912,195.13,195.07,0.6463471]
[1734656004717,6.4026,195.14,195.07,23.32734618]
[1734656004896,6.4026,195.14,195.09,22.68099908]
[1734656005220,23.64191052,195.18,195.11,22.68099908]
[1734656005422,3.5808,195.21,195.07,1.03416805]
[1734656005423,27.22258209,195.21,195.14,22.68099908]
[1734656005900,22.68099908,195.2,195.13,22.68099908]
[1734656006099,27.22258209,195.21,195.14,22.68099908]
[1734656006512,23.64162783,195.2,195.12,22.68099908]
[1734656006701,22.68099908,195.19,195.12,22.68099908]
[1734656006896,22.68099908,195.16,195.09,22.68099908]
[1734656007101,0.96090373,195.15,195.08,22.68099908]
[1734656007296,0.96090373,195.15,195.09,22.68099908]
[1734656007717,22.68099908,195.17,195.09,22.68099908]
[1734656007906,22.68099908,195.18,195.1,22.68099908]
[1734656008217,27.22267226,195.21,195.14,22.68099908]
[1734656008750,22.68099908,195.24,195.17,22.68099908]
[1734656008902,7.28492078,195.25,195.18,22.68099908]
[1734656009099,6.3243,195.25,195.19,22.68099908]
[1734656009999,6.3243,195.25,195.2,22.68099908]
[1734656010819,26.20139908,195.27,195.2,22.68099908]
[1734656010996,28.86159908,195.3,195.23,22.68099908]
[1734656011194,0.96018672,195.29,195.23,22.68099908]
[1734656011398,22.68099908,195.28,195.21,22.68099908]
[1734656011908,28.86159908,195.3,195.22,22.68099908]
[1734656012221,0.96019247,195.29,195.22,22.68099908]
[1734656012523,0.96019247,195.29,195.16,0.386383]
[1734656012524,22.68099908,195.26,195.19,22.68099908]
[1734656012708,0.96044403,195.25,195.18,22.68099908]
[1734656013120,22.68099908,195.26,195.18,22.68099908]
[1734656013424,22.68099908,195.26,195.19,22.68099908]
[1734656013647,23.64138271,195.25,195.18,22.68099908]
[1734656013819,22.68099908,195.24,195.17,22.68099908]
[1734656014000,0.96049429,195.23,195.16,22.68099908]
[1734656014202,22.68099908,195.24,195.16,22.68099908]
[1734656014409,22.68099908,195.23,195.16,22.68099908]
[1734656014607,0.96050218,195.28,195.18,22.68099908]
[1734656014808,42.68099908,195.26,195.18,22.68099908]
[1734656015122,22.68099908,195.24,195.17,22.68099908]
[1734656015317,23.64144647,195.25,195.17,22.68099908]
[1734656015501,0.96047926,195.32,195.24,22.68099908]
[1734656015702,22.68099908,195.31,195.24,22.68099908]
[1734656015901,23.64120072,195.3,195.22,22.68099908]
[1734656016313,22.68099908,195.29,195.22,22.68099908]
[1734656016510,0.96029604,195.28,195.21,22.68099908]
[1734656016717,23.64129512,195.28,195.2,22.68099908]
[1734656017201,22.68099908,195.27,195.2,22.68099908]
[1734656018041,0.96033388,195.26,195.2,22.68099908]
[1734656018928,22.68099908,195.27,195.2,22.68099908]
[1734656019519,0.96032978,195.26,195.2,22.68099908]
[1734656020138,22.68099908,195.27,195.2,22.68099908]
[1734656020507,22.68099908,195.28,195.2,22.68099908]
[1734656020709,0.96034497,195.27,195.2,22.68099908]
[1734656021209,22.68099908,195.26,195.19,22.68099908]
[1734656021417,23.64147914,195.25,195.17,22.68099908]
[1734656021601,0.96048006,195.25,195.18,22.68099908]
[1734656022106,23.64147914,195.25,195.18,22.68099908]
[1734656022723,0.96048006,195.25,195.18,22.68099908]
[1734656024132,22.68099908,195.22,195.14,22.68099908]
[1734656024341,0.96070433,195.21,195.14,22.68099908]
[1734656024839,0.96070433,195.21,195.12,22.68099908]
[1734656024840,22.68099908,195.19,195.12,22.68099908]
[1734656025010,0.96076449,195.18,195.13,22.68099908]
[1734656025329,0.96075945,195.19,195.14,22.68099908]
[1734656025556,0.96049976,195.31,195.18,22.68099908]
[1734656025712,22.68099908,195.29,195.22,22.68099908]
[1734656025914,6.0977,195.33,195.15,0.38630817]
[1734656025915,23.6413947,195.28,195.2,22.68099908]
[1734656026835,23.6413947,195.28,195.15,0.38630817]
[1734656026836,23.776884,195.27,195.21,22.68099908]
[1734656027015,0.96038119,195.26,195.2,22.68099908]
[1734656027215,46.45788308,195.25,195.18,22.68099908]
[1734656027423,23.64153313,195.24,195.17,22.68099908]
[1734656027614,23.64153313,195.24,195.16,22.68099908]
[1734656027812,0.96053405,195.24,195.17,22.68099908]
[1734656028019,23.776884,195.26,195.2,22.68099908]
[1734656028218,22.68099908,195.28,195.21,22.68099908]
[1734656028520,0.96032242,195.27,195.2,22.68099908]
[1734656028720,46.45788308,195.26,195.18,22.68099908]
[1734656028922,0.96046309,195.25,195.18,22.68099908]
[1734656029121,23.64146217,195.25,195.18,22.68099908]
[1734656030042,0.96046309,195.25,195.19,22.68099908]
[1734656030215,0.96046309,195.25,195.2,22.68099908]
[1734656030726,0.96046309,195.25,195.21,22.68099908]
[1734656030922,34.20219908,195.3,195.23,22.68099908]
[1734656031223,22.68099908,195.32,195.24,22.68099908]
[1734656031428,0.96017708,195.31,195.24,22.68099908]
[1734656031935,23.64117616,195.31,195.24,22.68099908]
[1734656032229,46.45788308,195.3,195.23,22.68099908]
[1734656032406,47.41821858,195.3,195.23,22.68099908]
[1734656032613,24.7372195,195.3,195.24,22.68099908]
[1734656033132,0.9603355,195.3,195.26,22.68099908]
[1734656033335,3.4728,195.35,195.29,22.68099908]
[1734656033518,3.4728,195.35,195.27,0.38596795]
[1734656033519,7.46541595,195.38,195.33,22.68099908]
[1734656033835,7.46541595,195.38,195.27,0.38596795]
[1734656033836,22.68099908,195.37,195.3,22.68099908]
[1734656034031,0.95993602,195.36,195.3,22.68099908]
[1734656034231,6.5056,195.38,195.32,22.68099908]
[1734656034409,7.46538203,195.38,195.32,22.68099908]
[1734656035520,3.3028,195.41,195.36,22.68099908]
[1734656035720,7.03519854,195.43,195.37,22.68099908]
[1734656035920,3.2935,195.46,195.39,22.68099908]
[1734656036120,3.2935,195.46,195.41,22.68099908]
[1734656036638,6.0756,195.48,195.43,22.68099908]
[1734656036826,6.0756,195.48,195.42,22.68099908]
[1734656037218,6.0756,195.48,195.43,22.68099908]
[1734656037519,12.21702598,195.52,195.46,22.68099908]
[1734656037723,4.2502383,195.52,195.45,22.68099908]
[1734656037927,26.93123738,195.52,195.44,22.68099908]
[1734656038236,26.93123738,195.52,195.45,22.68099908]
[1734656038435,0.9590825,195.51,195.45,22.68099908]
[1734656038615,22.68099908,195.5,195.43,22.68099908]
[1734656038812,23.64008158,195.51,195.44,22.68099908]
[1734656039015,22.68099908,195.49,195.42,22.68099908]
[1734656039314,22.68099908,195.46,195.39,22.68099908]
[1734656039633,23.64045585,195.45,195.38,22.68099908]
[1734656039836,42.68099908,195.44,195.37,22.68099908]
[1734656040037,0.95957288,195.43,195.36,22.68099908]
[1734656040229,23.64057196,195.43,195.35,22.68099908]
[1734656040431,23.64057196,195.43,195.36,22.68099908]
[1734656040739,23.64057196,195.43,195.29,5.2122]
[1734656040740,23.776884,195.42,195.35,22.68099908]
[1734656040943,0.95963513,195.41,195.35,22.68099908]
[1734656041635,23.64063421,195.41,195.34,22.68099908]
[1734656041827,48.88149908,195.42,195.35,22.68099908]
[1734656042026,26.2005,195.42,195.35,22.68099908]
[1734656043046,48.88149908,195.42,195.34,22.68099908]
[1734656043537,22.68099908,195.39,195.32,22.68099908]
[1734656043740,0.95988046,195.38,195.32,22.68099908]
[1734656044042,0.95988046,195.4,195.34,22.68099908]
[1734656045834,46.45788308,195.39,195.32,22.68099908]
[1734656046042,23.64077681,195.38,195.31,22.68099908]
[1734656046242,22.68099908,195.37,195.3,22.68099908]
[1734656046435,0.95991383,195.36,195.3,22.68099908]
[1734656047139,23.776884,195.35,195.29,22.68099908]
[1734656047334,0.95995459,195.34,195.29,22.68099908]
[1734656047522,23.64095367,195.34,195.26,22.68099908]
[1734656047718,22.68099908,195.32,195.24,22.68099908]
[1734656047920,0.96020335,195.31,195.24,22.68099908]
[1734656048124,0.96020335,195.31,195.25,22.68099908]
[1734656048649,35.47789908,195.36,195.28,22.68099908]
[1734656048819,23.776884,195.34,195.27,22.68099908]
[1734656049025,23.64100103,195.33,195.26,22.68099908]
[1734656049847,23.64100103,195.33,195.25,22.68099908]
[1734656050345,22.68099908,195.31,195.24,22.68099908]
[1734656050549,0.9602403,195.3,195.24,22.68099908]
[1734656051235,23.64123938,195.3,195.23,22.68099908]
[1734656051548,0.9602403,195.3,195.24,22.68099908]
[1734656051745,0.96017386,195.31,195.24,22.68099908]
[1734656051946,23.64117294,195.31,195.24,22.68099908]
[1734656053166,23.64117294,195.31,195.2,0.38634579]
[1734656053167,23.776884,195.3,195.23,22.68099908]
[1734656053467,23.776884,195.3,195.15,8.4399]
[1734656053468,23.64129161,195.29,195.21,22.68099908]
[1734656053625,22.68099908,195.24,195.11,0.38689006]
[1734656053959,22.68099908,195.2,195.13,22.68099908]
[1734656054129,0.96072224,195.19,195.13,22.68099908]
[1734656054329,22.68099908,195.22,195.14,22.68099908]
[1734656054560,0.96064804,195.21,195.14,22.68099908]
[1734656054982,0.9606477,195.24,195.17,22.68099908]
[1734656055285,0.9606477,195.24,195.19,22.68099908]
[1734656056086,0.9606477,195.24,195.18,22.68099908]
[1734656056260,22.68099908,195.22,195.15,22.68099908]
[1734656056563,23.64162541,195.24,195.17,22.68099908]
[1734656056765,42.68099908,195.25,195.18,22.68099908]
[1734656056951,22.68099908,195.26,195.18,22.68099908]
[1734656057145,22.68099908,195.26,195.19,22.68099908]
[1734656057346,0.96038647,195.25,195.19,22.68099908]
[1734656057564,23.64142311,195.26,195.19,22.68099908]
[1734656058561,0.96042152,195.25,195.19,22.68099908]
[1734656059144,23.64140564,195.27,195.2,22.68099908]
[1734656059344,23.776884,195.26,195.19,22.68099908]
[1734656059750,23.64140564,195.27,195.21,22.68099908]
[1734656059952,0.96031858,195.28,195.21,22.68099908]
[1734656060148,22.68099908,195.33,195.26,22.68099908]
[1734656060354,25.97499908,195.34,195.27,22.68099908]
[1734656060561,4.25399147,195.34,195.28,22.68099908]
[1734656060960,4.25399147,195.34,195.28,14.17251423]
[1734656062055,37.94939823,195.33,195.26,14.17251423]
[1734656062267,17.46651423,195.34,195.27,14.17251423]
[1734656062444,0.9600142,195.33,195.27,14.17251423]
[1734656063070,26.93270503,195.34,195.27,22.67868781]
[1734656064075,22.67868781,195.33,195.26,22.67868781]
[1734656064272,0.96007238,195.32,195.26,22.67868781]
[1734656064474,23.63875891,195.33,195.26,22.67868781]
[1734656065371,46.45557181,195.32,195.25,22.67868781]
[1734656065674,0.96018731,195.31,195.25,22.67868781]
[1734656065973,22.67868781,195.33,195.26,22.67868781]
[1734656066199,6.1507,195.35,195.29,22.67868781]
[1734656066377,23.63853392,195.37,195.3,22.67868781]
[1734656066557,22.67868781,195.38,195.31,22.67868781]
[1734656066756,23.63847654,195.38,195.31,22.67868781]
[1734656067065,6.5753,195.4,195.33,22.67868781]
[1734656067263,22.67868781,195.43,195.36,22.67868781]
[1734656067464,3.3361,195.44,195.38,22.67868781]
[1734656067868,0.95944786,195.43,195.37,22.67868781]
[1734656068158,22.67868781,195.42,195.35,22.67868781]
[1734656068349,23.63833184,195.41,195.34,22.67868781]
[1734656068552,22.67868781,195.4,195.33,22.67868781]
[1734656068771,22.67868781,195.37,195.3,22.67868781]
[1734656068978,0.95993574,195.36,195.29,22.67868781]
[1734656069158,22.67868781,195.35,195.28,22.67868781]
[1734656069358,0.95997304,195.34,195.28,22.67868781]
[1734656069559,23.63869176,195.34,195.27,22.67868781]
[1734656070072,0.96000395,195.34,195.28,22.67868781]
[1734656070491,23.63869176,195.34,195.27,22.67868781]
[1734656070789,0.96000395,195.34,195.28,22.67868781]
[1734656071876,22.67868781,195.36,195.28,22.67868781]
[1734656072179,0.9598837,195.35,195.28,22.67868781]
[1734656072355,23.63857151,195.35,195.28,22.67868781]
[1734656072752,23.776884,195.33,195.23,0.38594415]
[1734656073096,22.67868781,195.3,195.23,22.67868781]
[1734656073455,22.67868781,195.31,195.24,22.67868781]
[1734656073717,0.96016071,195.32,195.26,22.67868781]
[1734656073898,27.033084,195.33,195.27,22.67868781]
[1734656074058,3.2562,195.33,195.27,22.67868781]
[1734656074257,6.6598,195.34,195.28,22.67868781]
[1734656075757,23.63862518,195.33,195.25,22.67868781]
[1734656075957,22.67868781,195.32,195.25,22.67868781]
[1734656076557,23.63879583,195.33,195.25,22.67868781]
[1734656077191,22.67868781,195.31,195.24,22.67868781]
[1734656077358,0.960199,195.3,195.24,22.67868781]
[1734656077565,0.960199,195.3,195.23,22.67868781]
[1734656078887,23.63888681,195.3,195.23,22.67868781]
[1734656079087,22.67868781,195.27,195.2,22.67868781]
[1734656079386,23.63907956,195.28,195.2,22.67868781]
[1734656079584,0.96026268,195.28,195.22,22.67868781]
[1734656079970,22.67868781,195.3,195.22,22.67868781]
[1734656080176,6.6598,195.34,195.27,22.67868781]
[1734656080489,30.29838756,195.34,195.27,22.67868781]
[1734656081581,22.67868781,195.32,195.24,22.67868781]
[1734656081894,23.63888394,195.31,195.23,22.67868781]
[1734656082390,29.33848781,195.34,195.26,22.67868781]